Cogmind - Beta 12 @@@ ROGUE MODE // 2023.09.06 @ 13:08:57 Player: TheLargestBoi Result: Self-destructed Performance ------------- Evolutions (1) 500 Regions Visited (3) 600 Robots Destroyed (41) 205 Value Destroyed (880) 880 Prototype IDs (3) 60 Alien Tech Used (0) 0 Bonus (0) 0 TOTAL SCORE: 2245 Bonus ------- None Cogmind --------- Core Integrity 345/400 Matter 245/300 Energy 249/250 System Corruption 0% Temperature Critical (516) Movement Hovering (180) Ox2 Location -9/Materials Parts ------- > --- POWER (1) -------- Ion Engine > --- PROPULSION (3) --- Airjet > --- UTILITY (3) ------ Medium Storage Unit Hacking Suite > --- WEAPON (2) ------- Advanced Beam Cannon Grenade Launcher > --- INVENTORY (10) --- Improved Ion Engine Hover Unit Airjet Signal Interpreter Particle Charger Hardened Light Armor Plating Beam Rifle Beam Rifle Advanced Beam Cannon Peak State ------------ > --- POWER ------------ Ion Engine > --- PROPULSION ------- Airjet Airjet Airjet > --- UTILITY ---------- Medium Storage Unit Experimental Sensor Array Hacking Suite > --- WEAPON ----------- Advanced Beam Cannon Advanced Beam Cannon > --- INVENTORY -------- Improved Ion Engine Hover Unit Airjet Signal Interpreter Particle Charger Hardened Light Armor Plating Beam Rifle Beam Rifle Advanced Beam Cannon Grenade Launcher [Rating: 31] Favorites ----------- Power Ion Engine Engine Ion Engine Propulsion Aluminum Leg Leg Aluminum Leg Hover Unit Airjet Utility Medium Storage Unit Device Experimental Sensor Array Storage Medium Storage Unit Hackware Hacking Suite Protection Hardened Light Armor Plating Weapon Particle Cannon Energy Gun Beam Rifle Energy Cannon Particle Cannon Ballistic Gun Assault Rifle Launcher Grenade Launcher Build | -11 -10 -10 -9 ------- Run | Jun Mat Min Mat Slots Evolved 2 | . . . 2 Power . | . . . . Propulsion 1 | . . . 1 Utility 1 | . . . 1 Weapon . | . . . . Parts Attached 50 | 7 18 3 22 Power 9 | 1 3 1 4 Engine 9 | 1 3 1 4 Core . | . . . . Reactor . | . . . . Propulsion 8 | 2 1 . 5 Treads . | . . . . Leg 3 | 2 1 . . Wheel . | . . . . Hover 5 | . . . 5 Flight . | . . . . Utility 14 | 2 5 . 7 Device 10 | 1 3 . 6 Storage 2 | 1 1 . . Processor . | . . . . Hackware 1 | . 1 . . Protection 1 | . . . 1 Artifact . | . . . . Weapon 19 | 2 9 2 6 Energy Gun 4 | . 3 . 1 Energy Cannon 6 | . 1 1 4 Ballistic Gun 4 | 2 2 . . Ballistic Cannon . | . . . . Launcher 5 | . 3 1 1 Special Weapon . | . . . . Impact Weapon . | . . . . Slashing Weapon . | . . . . Piercing Weapon . | . . . . Special Melee Weapon . | . . . . Unidentified Prototypes 1 | . . . 1 Parts Lost 5 | . 1 . 4 Power 1 | . . . 1 Propulsion 3 | . 1 . 2 Utility 1 | . . . 1 Weapon . | . . . . Highest Loss Streak 3 | . 1 . 3 To Critical Strikes . | . . . . Average Slot Usage (%) 99 | . 99 100 97 Engine 12 | . 14 14 11 Leg 18 | . 28 28 . Hover 10 | . . . 31 Device 6 | . 6 . 9 Storage 12 | . 14 14 11 Hackware 9 | . 7 14 11 Energy Gun 6 | . 5 14 3 Energy Cannon 10 | . 3 13 18 Ballistic Gun 8 | . 17 . . Naked Turns . | . . . . Heaviest Build 30 | 12 22 24 30 Greatest Support 24 | 20 20 20 24 Greatest Overweight (x) 7 | 2 1 1 7 Average Overweight (x) . | . . 1 . Largest Inventory Capacity 10 | 8 10 10 10 Average Capacity 9 | 7 9 10 10 Most Carried 10 | 5 10 10 10 Average Carried 9 | 2 8 10 9 Final Capacity 10 | 8 10 10 10 Final Carried 10 | 5 10 10 9 Class Distribution -------------------- 90% | Mutant 9% | Scavenger-Mutant Dominant Class ---------------- Mutant | -10/Materials Mutant | -10/Mines Mutant | -9/Materials Resources | -11 -10 -10 -9 ----------- Run | Jun Mat Min Mat Matter Collected 911 | 205 450 51 205 Remotely . | . . . . Salvage Created 1175 | 29 473 88 585 Parts 89 | 4 37 9 39 Haulers Intercepted 1 | . . . 1 Recyclers Shooed 1 | 1 . . . Parts Field Recycled . | . . . . Retrieved Matter . | . . . . Parts Self-Destructed . | . . . . Prevented . | . . . . Kills | -11 -10 -10 -9 ------- Run | Jun Mat Min Mat Combat Hostiles Destroyed 25 | . 14 4 7 Guns 8 | . 8 . . Cannons 6 | . . 1 5 AOE 11 | . 6 3 2 Classes Destroyed 11 | 1 7 1 2 Worker 3 | . 2 . 1 Builder 2 | . 1 . 1 Tunneler 1 | 1 . . . Hauler 1 | . . . 1 Recycler 2 | . 1 . 1 Operator 2 | . 1 . 1 Watcher 5 | . 2 . 3 Swarmer 9 | . 6 3 . Grunt 10 | . 8 . 2 Brawler 1 | . . . 1 Sentry 5 | . . 1 4 Best Kill Streak 6 | 1 6 3 4 Combat Bots Only 4 | . 4 3 3 Max Kills in Single Turn 3 | 1 3 3 2 Gunslinging . | . . . . Exploded 3 | . 2 3 1 Melee . | . . . . Uniques/NPCs Destroyed . | . . . . Combat | -11 -10 -10 -9 -------- Run | Jun Mat Min Mat Damage Taken 908 | . 447 53 408 Core 105 | . 50 . 55 Absorbed by Shields . | . . . . Regen/Repaired (Parts) 32 | . . . 32 Core Remaining (%) 90 | 100 . 80 . Volleys Fired 104 | 6 53 3 42 Largest 2 | 2 2 2 2 Hottest 136 | 40 124 124 136 Shots Fired 201 | 12 99 6 84 Gun 114 | 12 91 3 8 Cannon 75 | . 3 2 70 Launcher 12 | . 5 1 6 Special . | . . . . Kinetic 95 | 12 83 . . Thermal 94 | . 11 5 78 Explosive 12 | . 5 1 6 Electromagnetic . | . . . . Robot Hit Streak 11 | 1 7 3 11 Robot Miss Streak 9 | 4 9 1 4 Penetration Max . | . . . . Secondary Targets . | . . . . Shots Hit Robots 103 | 4 49 3 47 Core Hits 62 | 3 34 4 21 Critical Kills . | . . . . Critical Parts Destroyed 1 | . 1 . . Critical Strikes 1 | . 1 . . Destroy 1 | . 1 . . Melee Attacks . | . . . . Impact . | . . . . Slashing . | . . . . Piercing . | . . . . Sneak Attacks . | . . . . Combat Hostiles . | . . . . Follow-up Attacks . | . . . . Damage Inflicted 2756 | 47 1449 152 1108 Guns 624 | 34 512 15 63 Cannons 906 | . . 40 866 Explosions 1209 | . 936 94 179 Melee . | . . . . Ramming 17 | 13 1 3 . Kinetic 532 | 34 498 . . Thermal 998 | . 14 55 929 Explosive 1209 | . 936 94 179 Electromagnetic . | . . . . Impact . | . . . . Slashing . | . . . . Piercing . | . . . . Highest Corruption . | . . . . Average Corruption . | . . . . Corruption Purged . | . . . . Corruption Blocked . | . . . . Overload Shots . | . . . . Overflow Damage 97 | . 71 . 26 Projectiles 26 | . . . 26 Explosions 71 | . 71 . . Melee . | . . . . Knockbacks . | . . . . Impact . | . . . . Kinetic . | . . . . Secondary . | . . . . Self-Inflicted Damage 135 | . 126 . 9 Shots 4 | . 3 . 1 Rammed . | . . . . Targets Rammed 9 | 7 1 1 . Kicked 9 | 7 1 1 . Crushed . | . . . . Highest Temperature 516 | . 126 135 516 Average Temperature 122 | . 34 56 138 Received Heat Transfer 243 | . 99 18 126 Effects 3 | . . . 3 Shutdowns 1 | . . . 1 Energy Bleed 1 | . . . 1 Damage (minor) 1 | . . . 1 Siege Activations . | . . . . Robots Corrupted . | . . . . Combat Hostiles . | . . . . Parts Fried . | . . . . Impact Corruptions . | . . . . Robots Melted . | . . . . Combat Hostiles . | . . . . Parts Melted 2 | . . . 2 Heat Transferred 1813 | . 37 111 1665 Parts Sabotaged . | . . . . Parts Stolen . | . . . . Parts Stripped . | . . . . Power Chain Reactions . | . . . . Missiles Intercepted . | . . . . Alert | -11 -10 -10 -9 ------- Run | Jun Mat Min Mat Peak Influence 389 | 5 389 181 236 Initial 70 | . 3 66 70 Average 158 | 1 191 147 136 Maximum Alert Level 1 | . 1 . 1 Low Security (%) 59 | 100 41 100 63 Level 1 40 | . 58 . 36 Level 2 . | . . . . Level 3 . | . . . . Level 4 . | . . . . Level 5 . | . . . . High Security . | . . . . Max Security . | . . . . Squads Dispatched 4 | . 3 . 1 Investigation 2 | . 2 . . Extermination . | . . . . Reinforcement 2 | . 1 . 1 Assault . | . . . . Garrison . | . . . . Intercept . | . . . . Searches Triggered . | . . . . Construction Impeded 1 | . . . 1 Haulers Reinforced . | . . . . Active Scanning Responses . | . . . . Cargo Convoy Interrupts . | . . . . Stealth | -11 -10 -10 -9 --------- Run | Jun Mat Min Mat Distress Signals 2 | . 2 . . Communications Jammed . | . . . . Distress Signals . | . . . . Times Spotted 59 | . 32 5 22 Peak Tracking Total 7 | . 7 3 7 Tactical Retreats 5 | . 4 . 1 Traps | -11 -10 -10 -9 ------- Run | Jun Mat Min Mat Traps Triggered 1 | . 1 . . Indirectly . | . . . . Trap Hack Attempts . | . . . . Triggered . | . . . . Disarmed . | . . . . Reprogrammed . | . . . . Reused . | . . . . Traps Extracted . | . . . . Installed . | . . . . Triggered . | . . . . Machines | -11 -10 -10 -9 ---------- Run | Jun Mat Min Mat Machines Disabled 3 | . 2 . 1 Max in Single Turn 1 | . 1 . 1 Machines Repaired . | . . . . Machines Sabotaged . | . . . . Overloaded Fab Kills . | . . . . Hacking | -11 -10 -10 -9 --------- Run | Jun Mat Min Mat Machines Accessed 15 | . 9 . 6 Terminals 10 | . 7 . 3 Fabricators . | . . . . Repair Stations 2 | . . . 2 Recycling Units 3 | . 2 . 1 Scanalyzers . | . . . . Garrison Access . | . . . . Total Hacks 48 | . 28 . 20 Successful 28 | . 13 . 15 Failed 20 | . 15 . 5 Catastrophic 6 | . 5 . 1 Database Lockouts . | . . . . Manual 32 | . 20 . 12 Terminals 34 | . 20 . 14 Fabricators . | . . . . Repair Stations 4 | . . . 4 Recycling Units 10 | . 8 . 2 Scanalyzers . | . . . . Garrison Access . | . . . . Terminal Hacks 10 | . 6 . 4 Prototype ID Bank 1 | . . . 1 Level Access Points 1 | . 1 . . Branch Access Points 2 | . 1 . 1 Terminal Index 1 | . . . 1 Recycling Unit Index 1 | . . . 1 Locate Traps 1 | . 1 . . Security Status 1 | . 1 . . Hauler Manifests 1 | . 1 . . Registered Components 1 | . 1 . . Fabricator Hacks . | . . . . Repair Station Hacks 4 | . . . 4 Scan Component 2 | . . . 2 Repair 2 | . . . 2 Recycling Unit Hacks 3 | . 2 . 1 Report Inventory 2 | . 1 . 1 Retrieve Components 1 | . 1 . . Scanalyzer . | . . . . Garrison Access Hacks . | . . . . Unauthorized Hacks 11 | . 5 . 6 Terminals 7 | . 2 . 5 Track 1 | . . . 1 Botnet 4 | . 1 . 3 Operators 2 | . 1 . 1 Fabricators . | . . . . Repair Stations . | . . . . Recycling Units 4 | . 3 . 1 Reject 3 | . 2 . 1 Mask 1 | . 1 . . Scanalyzers . | . . . . Garrison Access . | . . . . Data Cores Recovered . | . . . . Used . | . . . . Hacking Detections 13 | . 7 . 6 Full Trace Events 1 | . 1 . . Feedback Events . | . . . . Feedback Blocked . | . . . . Robot Schematics Acquired . | . . . . Robots Built . | . . . . Authchips . | . . . . Time . | . . . . Total Robot Build Rating . | . . . . Part Schematics Acquired . | . . . . Parts Built . | . . . . Authchips . | . . . . Time . | . . . . Total Part Build Rating . | . . . . Parts Repaired 2 | . . . 2 Time 57 | . . . 57 Parts Recycled . | . . . . Recycled Matter . | . . . . Retrieved Matter . | . . . . Retrieved Components 9 | . 9 . . Parts Scanalyzed . | . . . . Part Schematics Acquired . | . . . . Parts Damaged . | . . . . Bothacking | -11 -10 -10 -9 ------------ Run | Jun Mat Min Mat Used RIF Installer . | . . . . Robots Hacked . | . . . . Non-combat . | . . . . Combat . | . . . . Robot Hacks Applied . | . . . . Relay Couplers Released . | . . . . Fabnet Peak Effective % . | . . . . Robots Rewired . | . . . . Allies Hacked . | . . . . Hacks Repelled . | . . . . Allies | -11 -10 -10 -9 -------- Run | Jun Mat Min Mat Total Allies . | . . . . Largest Group . | . . . . Highest-Rated Group . | . . . . Highest-Rated Ally . | . . . . Total Orders . | . . . . Ally Attacks . | . . . . Total Damage . | . . . . Kills . | . . . . Allies Corrupted . | . . . . Allies Melted . | . . . . Intel | -11 -10 -10 -9 ------- Run | Jun Mat Min Mat Robot Analysis Total . | . . . . Derelict Logs Recovered 1 | . . 1 . Drone Launches . | . . . . Drone Recoveries . | . . . . Exploration | -11 -10 -10 -9 ------------- Run | Jun Mat Min Mat Turns Passed 2559 | 111 1240 359 849 Spaces Moved 1840 | 63 760 181 836 Core 12 | 8 . . 4 Treads . | . . . . Legs 1001 | 55 760 181 5 Wheels . | . . . . Hover 827 | . . . 827 Flight . | . . . . Fastest Speed 50 | 50 120 190 52 Average Speed 110 | 112 135 190 69 Slowest Speed 400 | 150 190 190 400 Overloaded Moves . | . . . . Propulsion Burnouts . | . . . . Robots Hopped . | . . . . Cave-ins Triggered . | . . . . Exploration Rate (%) 41 | 4 88 40 33 Regions Visited 3 Branch Regions 1 Pre-discovered Areas 1 | . . 1 . Known Exits Taken 2 | . 1 1 . Unknown Exits Taken 1 | 1 . . . Scrap Searched . | . . . . Spaces Dug 4 | . 4 . . Terrain Destroyed 77 | . 45 10 22 Melee . | . . . . Projectile 4 | . . . 4 AOE 73 | . 45 10 18 Terrain Rammed . | . . . . Walls Destroyed . | . . . . Machines Disabled . | . . . . Actions | -11 -10 -10 -9 --------- Run | Jun Mat Min Mat Total 2180 | 87 885 190 1018 Wait 106 | . 13 . 93 Move 1838 | 63 759 180 836 Hop . | . . . . Pick Up 37 | 5 21 1 10 Fast Attach 15 | 7 1 . 7 Attach 2 | . 1 . 1 Detach . | . . . . Swap 33 | . 16 3 14 Drop 37 | . 20 2 15 Fire 104 | 6 53 3 42 Melee . | . . . . Ram . | . . . . Kick 8 | 6 1 1 . Crush . | . . . . Escape Stasis . | . . . . Rewire . | . . . . Trap . | . . . . Miscellaneous . | . . . . Route ------- -11/Junkyard -10/Materials (discovered 4 exits: *Mat x3 / *Min) -10/Mines -9/Materials (discovered 1 exit: Min) History --------- Turn | Location | Event 8 | -11/Junkyard | Discovered new exit (range 15) 112 | -11/Junkyard | Entered Materials 324 | -10/Materials | Build established: Mutant 508 | -10/Materials | Discovered new exit (range 15) 623 | -10/Materials | Discovered new exit (range 10) 722 | -10/Materials | Identified exit to Mines 722 | -10/Materials | Identified exit to Materials 1352 | -10/Materials | Entered Mines 1411 | -10/Mines | Learned location of Mines (-9) 1429 | -10/Mines | Found a damaged Exp. Sensor Array with a note attached 1433 | -10/Mines | Found Prototype Device 1569 | -10/Mines | Discovered exit to Materials (range 8) 1637 | -10/Mines | Joined a pair of Derelicts in attacking an 0b10 outpost 1711 | -10/Mines | Entered Materials 1711 | -9/Materials | Evolved 2 slots: Propulsion x1, Utility x1 1749 | -9/Materials | Identified Exp. Sensor Array 1789 | -9/Materials | Identified exit to Mines 2092 | -9/Materials | Repaired Airjet 2196 | -9/Materials | Repaired Airjet 2560 | -9/Materials | Self-destructed Last Messages --------------- 02473_ Destroyed Hover Unit. 02475_ K-01 Serf collects debris. 02533_ B-36 Bruiser destroyed. 02536_ K-01 Serf collects debris. 02540_ G-34 Mercenary destroyed. 02543_ K-01 Serf destroyed. 02547_ Airjet destroyed. 02548_ U-05 Engineer lays Concrete. 02554_ U-05 Engineer builds a Wall. 02554_ U-05 Engineer lays Concrete. 02556_ Airjet destroyed. 02557_ Power failure, Ion Engine shutdown. 02557_ K-01 Serf collects debris. 02557_ U-05 Engineer lays Concrete. 02558_ ALERT: Construction progress impeded, dispatching reinforcements to local area. 02558_ U-05 Engineer lays Concrete. 02559_ Overheating: Exp. Sensor Array damaged (-2). 02559_ U-05 Engineer lays Concrete. 02559_ Exp. Sensor Array destroyed. Map ----- +----------------------------------------------------+ | ?????????????????#####????????#??????????????????? | | ?????????????????# #??????? #??????????????????? | | ?????????????????? ???????? #??????????????????? | | ?????????????????? ??????? #??????????????????? | | ??????????????????# #??????? #??????????????????? | | ??????????????????# #?????? #??????????????????? | | ????????????#######+####### #??????????????????? | | ????????????# ]! / #??????????????????? | | ????????????# """ =! # ???????????? | | ????????????# """ = # ???????? | | ????????????# """ # ????????? | | ????????????# [ # ####### ????????? | | ????????????# # #??????????????????? | | ????????????#######+####### #??????????????????? | | ?????????####### ## ####??? #??????????????????? | | ?????????? ? #?? #??????????????????? | | ???????????"""" # ### ########???????????? | | ??????????""""" # u ??????????? | | ??????????""""" ??????????? | | ??????????""""" ???????????? | | ???????????"""" ## =Y = ######??????????????? | | ???????????"""" ?# / == #???????????????????? | | ???????????"""" ?# * k #???????????????????? | | ??????????? ??# = #???????????????????? | | ?????????############ #???????????????????? | | ?????????# + @u #???????????????????? | | ?????????# # ##+#### #???????????????????? | | ?????????# # # %% ## #???????????????????? | | ?????????# + + " ## #???????????????????? | | ?????????# ###### T ## #???????????????????? | | ?????????# !! #????# " ## #???????????????????? | | ?????????# !#????# ## g#??########?????????? | | ?????????# !! #????# ## #??# #?????????? | | ?????????# #???######## #??# #?????????? | | ?????????######???# # #??# #?????????? | | ??????????????????# """ + #??# #?????????? | | ??????????????????# "Y"*# #??# #???####### | | ??????????????????# " "!# #???? ????# | | ??????????????????# [ # #######+####### """ | | ?????????########?# !== # # """ | | ?????????#= ] #?######## # """ | | ?????????# = #????????# # | | ?????????# " " #????????############### + | | ?????????# "R" #??????????????????????# ####### | | ?????????# """ #??????????????????????# # | | ?????????# #?###################### # """ ] | | ???##########+##### ] % # """ | | ???# !# =]=] % + """ | | ???# """ # *!*%== # " | | ???# """ + ########### ##### ## """ " | +----------------------------------------------------+ Best States ------------- Heat Dissipation 28 Energy Generation 12 Energy Capacity 265 Matter Stores 300 Matter Capacity 300 Sight Range 16 Robot Scan Range 20 Terrain Scan Range 16 Terrain Scan Density 10 ECM Strength 1 Armor Coverage 150 Evasion (%) 55 Particle Charging 15 Offensive Hacking 10 Item Schematics ----------------- None Robot Schematics ------------------ None Fabricated ------------ Nothing Alien Tech Used ----------------- None Achievements -------------- None Challenges ------------ None Game ------ Seed CommInsulationStorage Manual? 0 Play Time 00:31:19 Cumulative 13.1 hours Start 2023.09.06 @ 08:25:32 End 2023.09.06 @ 13:08:57 Sessions 3 Manual Loads 0 Difficulty Rogue Special Mode None Game No. 21 Rogue 21 Adventurer 0 Explorer 0 Win Type - Total 1 Types 1/0/0/0/0/0/0/0/0 Lore% 13 Gallery% 20 Achievement% 30 Wizard Run 0 Options --------- ASCII 0 Keyboard 0 Movement Numpad Keybinds 0 Fullscreen 1 Font 18/SmallcapsGlow Map View 76x50 Tactical HUD 1 Map Filters NONE Filters NONE Steam 1 RUN: f5d1278a-8d50-4fcd-aafe-8807fd85f94d